{"text_format":"1","workbook":"xlsx","n_sheets":2,"sheets":["Übersicht","Berechnungen"],"not_rendered":{"charts":0,"images":0,"macros":1,"external_links":0,"defined_names":1,"comments":0,"pivot_tables":0},"unopened":[],"bounds":{"document_bytes":16777216,"sheet_cells":100000,"rows_first":2000,"rows_last":500,"rows_between":2000,"halvings":0,"cell_chars":16384,"cell_head_chars":4096},"cells_cut":0,"cells_raw":0,"read":"whole","date_system":"1900"}

{"sheet":"Übersicht","index":0,"n_rows":44,"n_cols":9,"rows_kept":44,"cut":false,"hidden":false,"merged":[[1,1,1,3],[1,6,1,8]]}
[]
[null,"PO 2017",null,null,null,null,"PO 2023"]
[null,null,"Modul","CP",null,null,"Modul","CP"]
[null,null,"Kernstudium",{"$f":"IF(SUM(D5,D9,D21,D23,D25,D28)>0,SUM(D5,D9,D21,D23,D25,D28),\"\")","v":""},null,null,"Pflichtbereich I: Software Engineering",{"$f":"IF(SUM(H5:H11)>0,SUM(H5:H11),\"\")","v":""}]
[null,null,"Pflichtbereich I: Mathematische Grundlagen",{"$f":"IF(SUM(D6:D8)>0,SUM(D6:D8),\"\")","v":""},null,null,{"$f":"IF(Berechnungen!D9,\"Einführung in das Software Engineering\",\"\")","v":""},{"$f":"IF(Berechnungen!A12,6,\"\")","v":""}]
[null,null,"Lineare Algebra für Informatiker und Wirtschaftsinformatiker",{"$f":"IF(Berechnungen!A2,9,\"\")","v":""},null,null,{"$f":"IF(Berechnungen!D10,\"Requirements Engineering\",\"\")","v":""},{"$f":"IF(Berechnungen!A13,6,\"\")","v":""}]
[null,null,"Analysis für Informatiker und Wirtschaftsinformatiker ",{"$f":"IF(Berechnungen!A3,9,\"\")","v":""},null,null,{"$f":"IF(Berechnungen!D6,\"Software‐Architekturen\",\"\")","v":""},{"$f":"IF(Berechnungen!A5,6,\"\")","v":""}]
[null,null,"Stochastik für Informatiker ",{"$f":"IF(Berechnungen!A4,6,\"\")","v":""},null,null,{"$f":"IF(Berechnungen!H46,\"Software Entwicklung und Programmierung (SEP)\",\"\")","v":""},{"$f":"IF(Berechnungen!H46,9,\"\")","v":""}]
[null,null,"Pflichtbereich II: Informatik",{"$f":"IF(SUM(D10:D20)>0,SUM(D10:D20),\"\")","v":""},null,null,{"$f":"IF(Berechnungen!D15,\"Qualitätssicherung und Qualitätsmanagement\",\"\")","v":""},{"$f":"IF(Berechnungen!D15,6,\"\")","v":""}]
[null,null,"Concurrency",{"$f":"IF(Berechnungen!A5,6,\"\")","v":""},null,null,{"$f":"IF(Berechnungen!H50,\"Application Management\",\"\")","v":""},{"$f":"IF(Berechnungen!H50,6,\"\")","v":""}]
[null,null,"Programmierung",{"$f":"IF(Berechnungen!A6,9,\"\")","v":""},null,null,{"$f":"IF(Berechnungen!D14,\"Cloud and Fog Computing\",\"\")","v":""},{"$f":"IF(Berechnungen!D14,6,\"\")","v":""}]
[null,null,"Modelle der Informatik",{"$f":"IF(Berechnungen!A7,9,\"\")","v":""},null,null,"Pflichtbereich II: Programmierung und Entwicklung",{"$f":"IF(SUM(H13:H17)>0,SUM(H13:H17),\"\")","v":""}]
[null,null,"Kommunikationsnetze 1",{"$f":"IF(Berechnungen!A8,6,\"\")","v":""},null,null,{"$f":"IF(Berechnungen!H44,\"Einführung in die Programmierung\",\"\")","v":""},{"$f":"IF(Berechnungen!H44,6,\"\")","v":""}]
[null,null,"Software Entwicklung und Programmierung (SEP)",{"$f":"IF(Berechnungen!A9,6,\"\")","v":""},null,null,{"$f":"IF(Berechnungen!H48,\"Rechnerstrukturen und Betriebssysteme\",\"\")","v":""},{"$f":"IF(Berechnungen!H48,6,\"\")","v":""}]
[null,null,"Cybersicherheit",{"$f":"IF(Berechnungen!A10,6,\"\")","v":""},null,null,{"$f":"IF(Berechnungen!H47,\"Datenbankmanagementsysteme\",\"\")","v":""},{"$f":"IF(Berechnungen!H47,6,\"\")","v":""}]
[null,null,"Datenbankmanagementsysteme",{"$f":"IF(Berechnungen!A11,9,\"\")","v":""},null,null,{"$f":"IF(Berechnungen!H49,\"Datenstrukturen und Algorithmen\",\"\")","v":""},{"$f":"IF(Berechnungen!H49,6,\"\")","v":""}]
[null,null,"Software Engineering",{"$f":"IF(Berechnungen!A12,6,\"\")","v":""},null,null,{"$f":"IF(Berechnungen!D13,\"Grundlagen des Maschinellen Lernens\",\"\")","v":""},{"$f":"IF(Berechnungen!D13,6,\"\")","v":""}]
[null,null,"Requirements Engineering und Management 1",{"$f":"IF(Berechnungen!A13,6,\"\")","v":""},null,null,"Pflichtbereich III: Technologische Grundlagen",{"$f":"IF(SUM(H19:H21)>0,SUM(H19:H21),\"\")","v":""}]
[null,null,"Berechenbarkeit und Komplexität ",{"$f":"IF(Berechnungen!A14,6,\"\")","v":""},null,null,{"$f":"IF(Berechnungen!D8,\"Cybersicherheit\",\"\")","v":""},{"$f":"IF(Berechnungen!D8,6,\"\")","v":""}]
[null,null,"Rechnerstrukturen und Betriebssysteme",{"$f":"IF(Berechnungen!A15,9,\"\")","v":""},null,null,{"$f":"IF(Berechnungen!D7,\"Kommunikationsnetze\",\"\")","v":""},{"$f":"IF(Berechnungen!D7,6,\"\")","v":""}]
[null,null,"Pflichtbereich III: Betriebswirtschaftslehre",{"$f":"IF(D22>0,D22,\"\")","v":""},null,null,{"$f":"IF(Berechnungen!D16,\"Mensch Computer Interaktion\",\"\")","v":""},{"$f":"IF(Berechnungen!D16,6,\"\")","v":""}]
[null,null,"Einführung in die Betriebswirtschaftslehre",{"$f":"IF(Berechnungen!A16,6,\"\")","v":""},null,null,"Pflichtbereich IV: Grundbegriffe der Theoretischen Informatik",{"$f":"IF(SUM(H23:H24)>0,SUM(H23:H24),\"\")","v":""}]
[null,null,"Pflichtbereich IV: Wirtschaftsinformatik",{"$f":"IF(D24>0,D24,\"\")","v":""},null,null,{"$f":"IF(Berechnungen!H45,\"Modelle der Informatik\",\"\")","v":""},{"$f":"IF(Berechnungen!H45,6,\"\")","v":""}]
[null,null,"Enterprise Systems",{"$f":"IF(Berechnungen!A17,3,\"\")","v":""},null,null,{"$f":"IF(Berechnungen!D11,\"Berechenbarkeit und Komplexität\",\"\")","v":""},{"$f":"IF(Berechnungen!A14,6,\"\")","v":""}]
[null,null,"Schlüsselqualifikationen",{"$f":"IF(SUM(D26:D27)>0,SUM(D26:D27),\"\")","v":""},null,null,"Pflichtbereich V: Mathematische Grundlagen",{"$f":"IF(SUM(H26:H28)>0,SUM(H26:H28),\"\")","v":""}]
[null,null,"E1: IT-Projektmanagement",{"$f":"IF(Berechnungen!A18,3,\"\")","v":""},null,null,{"$f":"IF(Berechnungen!D3,\"Lineare Algebra für Informatiker und Wirtschaftsinformatiker\",\"\")","v":""},{"$f":"IF(Berechnungen!D3,D6,\"\")","v":""}]
[null,null,"E1: Schlüsselqualifikationen",{"$f":"IF(Berechnungen!A19,3,\"\")","v":""},null,null,{"$f":"IF(Berechnungen!D4,\"Analysis für Informatiker und Wirtschaftsinformatiker\",\"\")","v":""},{"$f":"IF(Berechnungen!D4,D7,\"\")","v":""}]
[null,null,"Studium Liberale",{"$f":"IF(D29>0,D29,\"\")","v":""},null,null,{"$f":"IF(Berechnungen!D5,\"Stochastik für Informatiker\",\"\")","v":""},{"$f":"IF(Berechnungen!D5,D8,\"\")","v":""}]
[null,null,"E3: Studium Liberale",{"$f":"IF(Berechnungen!A20,3,\"\")","v":""},null,null,"Wahlpflichtbereich",{"$f":"IF(SUM(H30:H32)>0,SUM(H30:H32),\"\")","v":""}]
[null,null,"Vertiefungsstudium",{"$f":"IF(SUM(D31,D36,D39,D41,D42,D43)>0,SUM(D31,D36,D39,D41,D42,D43),\"\")","v":""},null,null,{"$f":"IF(Berechnungen!L140,Berechnungen!M140,\"\")","v":""},{"$f":"IF(Berechnungen!L140,6,\"\")","v":""}]
[null,null,"Wahlpflichtbereich I: Informatik",{"$f":"IF(SUM(D32:D35)>0,SUM(D32:D35),\"\")","v":""},null," ",{"$f":"IF(Berechnungen!L141,Berechnungen!M141,\"\")","v":""},{"$f":"IF(Berechnungen!L141,6,\"\")","v":""}]
[null," ","WP I",{"$f":"IF(Berechnungen!A21,6,\"\")","v":""},null,null,{"$f":"IF(Berechnungen!L142,Berechnungen!M142,\"\")","v":""},{"$f":"IF(Berechnungen!L142,6,\"\")","v":""}]
[null,null,"WP II",{"$f":"IF(Berechnungen!A22,6,\"\")","v":""},null,null,"Schlüsselqualifikationen",{"$f":"IF(H34>0,H34,\"\")","v":""}]
[null,null,"WP III",{"$f":"IF(Berechnungen!A23,6,\"\")","v":""},null,null,{"$f":"IF(Berechnungen!L145,\"E1: Schlüsselqualifikationen\",\"\")","v":""},{"$f":"IF(Berechnungen!L145,3,\"\")","v":""}]
[null,null,"WP IV",{"$f":"IF(Berechnungen!A24,6,\"\")","v":""},null,null,"Studium Liberale",{"$f":"IF(SUM(H36:H37)>0,SUM(H36:H37),\"\")","v":""}]
[null,null,"Wahlpflichtbereich II",{"$f":"IF(SUM(D37:D38)>0,SUM(D37:D38),\"\")","v":""},null,null,{"$f":"IF(Berechnungen!D12,\"E3: Studium Liberale\",\"\")","v":""},{"$f":"IF(Berechnungen!A20,3,\"\")","v":""}]
[null,null,"Wahlpflichtmodul aus Informatik oder",{"$f":"IF(Berechnungen!A25,6,\"\")","v":""},null,null,{"$f":"IF(Berechnungen!D17,\"E3: Studium Liberale\",\"\")","v":""},{"$f":"IF(Berechnungen!A27,3,\"\")","v":""}]
[null,null,"Wahlpflichtmodul aus WiInf oder BWL",{"$f":"IF(Berechnungen!A26,6,\"\")","v":""},null,null,{"$f":"IF(Berechnungen!A28,\"Seminar\",\"\")","v":""},{"$f":"IF(Berechnungen!A28,6,\"\")","v":""}]
[null,null,"Studium Liberale",{"$f":"IF(D40>0,D40,\"\")","v":""},null,null,{"$f":"IF(Berechnungen!L143,\"Bachelorprojekt\",\"\")","v":""},{"$f":"IF(Berechnungen!L143,6,\"\")","v":""}]
[null,null,"E3: Studium Liberale",{"$f":"IF(Berechnungen!A27,3,\"\")","v":""},null,null,{"$f":"IF(Berechnungen!A30,\"Bachelorarbeit\",\"\")","v":""},{"$f":"IF(Berechnungen!A30,12,\"\")","v":""}]
[null,null,"Seminar",{"$f":"IF(Berechnungen!A28,6,\"\")","v":""},null,null,"CP Gesamt:",{"$f":"SUM(H4,H12,H18,H22,H25,H29,H33,H35,H38,H39,H40)","v":0}]
[null,null,"Bachelorprojekt",{"$f":"IF(Berechnungen!A29,9,\"\")","v":""},null,null,null,{"$f":"IF(Berechnungen!H55,Berechnungen!I55,IF(Berechnungen!H56,Berechnungen!I56,IF(Berechnungen!L146,\"+ 3CP\",IF(Berechnungen!L147,\"+6CP\",\"\"))))","v":""},{"$f":"IF(Berechnungen!H55,Berechnungen!J55,IF(Berechnungen!H56,Berechnungen!J56,IF(Berechnungen!L146,Berechnungen!M146,IF(Berechnungen!L147,Berechnungen!M147,\"\"))))","v":""}]
[null,null,"Bachelorarbeit",{"$f":"IF(Berechnungen!A30,12,\"\")","v":""}]
[null,null,"CP Gesamt:",{"$f":"SUM(D5,D9,D21,D23,D25,D28,D31,D36,D39,D41,D42,D43)","v":0}]

{"sheet":"Berechnungen","index":1,"n_rows":147,"n_cols":14,"rows_kept":147,"cut":false,"hidden":false,"merged":[[0,0,0,1],[0,3,0,5],[0,7,0,9],[12,7,12,9],[0,11,0,13],[15,11,15,13],[41,7,41,9],[42,8,42,9],[45,8,45,9],[26,7,26,9]]}
["bestandene Module (PO2017)",null,null,"1. \"problemlose\" Umrechnungen ",null,null,null,"2. \"CP\" Umrechnungen ",null,null,null,"3. \"3CP\"-Module und Sonstige"]
[false,"Lineare Algebra für Informatiker und Wirtschaftsinformatiker",null,"Formel","Module PO 2017","Module PO 2023",null,"bestanden"," Module PO 2017","Abkürzung",null,"bestanden"," Module PO 2017","Abkürzung"]
[false,"Analysis für Informatiker und Wirtschaftsinformatiker ",null,{"$f":"A2","v":false},"LinA","LinA",null,{"$f":"A6","v":false},"Programmierung","Prog",null,{"$f":"A16","v":false},"Einführung in die Betriebswirtschaftslehre","BWL"]
[false,"Stochastik für Informatiker ",null,{"$f":"A3","v":false},"AnA","AnA",null,{"$f":"A7","v":false},"Modelle der Informatik","MDI",null,{"$f":"A17","v":false},"Enterprise Systems","ES"]
[false,"Concurrency",null,false,"Stochastik","Stochastik",null,{"$f":"A9","v":false},"Software Entwicklung und  Programmierung","SEP",null,{"$f":"A18","v":false},"E1: IT-Projektmanagement","ITPM"]
[false,"Programmierung",null,{"$f":"A5","v":false},"Concurrency","Software-Architekturen",null,{"$f":"A11","v":false},"Datenbankmanagementsysteme","DBMS",null,false,"E1: Schlüsselqualifikationen","E1"]
[false,"Modelle der Informatik",null,{"$f":"A8","v":false},"Kommunikationsnetze 1","Kommunikationsnetze",null,{"$f":"A15","v":false},"Rechnerstrukturen und Betriebssysteme","RSBS",null,{"$f":"A25","v":false},"Wahlpflichtmodul aus Informatik oder","WPInf"]
[false,"Kommunikationsnetze 1",null,{"$f":"A10","v":false},"Cybersicherheit","Cybersicherheit",null,null,null,null,null,{"$f":"A26","v":false},"Wahlpflichtmodul aus WiInf oder BWL","WPWB"]
[false,"Software Entwicklung und  Programmierung (SEP)",null,{"$f":"A12","v":false},"Software Engineering","Einführung in das Software Engineering",null,null,"Module PO2023",null,null,{"$f":"A29","v":false},"Bachelorprojekt","BP"]
[false,"Cybersicherheit",null,{"$f":"A13","v":false},"REM1","Requirements Engineering",null,null,"Datenstrukturen und Algorithmen","DuA"]
[false,"Datenbankmanagementsysteme",null,{"$f":"A14","v":false},"BeKo","BeKo",null,null,"Application Management","AM",null,null,"Module PO2023"]
[false,"Software Engineering",null,{"$f":"A20","v":false},"E3","E3",null,null,null,null,null,null,"Wahlplichtmodul (WiWi und WiInf)","WP0 oder WP"]
[false,"Requirements Engineering und\nManagement 1",null,{"$f":"A21","v":false},"WP I","Grundlagen des Maschinellen Lernens",null,"2.1 \"ohne\" Probleme",null,null,null,null,"Wahlpflichtmodul I: Informatik","WP1 oder WPI"]
[false,"Berechenbarkeit und Komplexität ",null,{"$f":"A22","v":false},"WP II","Cloud and Fog Computing",null,"Formel","Module PO 2017","Module PO 2023",null,null,"Wahlpflichtmodul II: Informatik","WP2 oder WPII"]
[false,"Rechnerstrukturen und Betriebssysteme",null,false,"WP III","Qualitätssicherung und Qualitätsmanagement",null,{"$f":"AND(H3,H5,NOT(OR(H4,H6,H7)))","v":false},"Prog+SEP","Prog+SEP"]
[false,"Einführung in die Betriebswirtschaftslehre",null,false,"WP IV","Mensch Computer Interaktion",null,{"$f":"AND(H3,H5,H4,H6,NOT(OR(H7)))","v":false},"Prog+SEP+MDI+DBMS","Prog+SEP+MDI+DBMS+DuA",null,"3.1 \"nur ein Modul\" bestanden"]
[false,"Enterprise Systems",null,{"$f":"A27","v":false},"E3","E3",null,{"$f":"AND(H3,H5,H4,H7,NOT(OR(H6)))","v":false},"Prog+SEP+MDI+RSBS","Prog+SEP+MDI+RSBS+DuA",null,"Formel","Module PO 2017","Module PO 2023"]
[false,"E1: IT-Projektmanagement",null,{"$f":"A28","v":false},"Seminar","Seminar",null,{"$f":"AND(H3,H5,H6,H7,NOT(OR(H5)))","v":false},"Prog+SEP+DBMS+RSBS","Prog+SEP+DBMS+RSBS+DuA",null,{"$f":"AND(L3,NOT(OR(L4:L9)))","v":false},"BWL","WP0"]
[false,"E1: Schlüsselqualifikationen",null,{"$f":"A30","v":false},"Bachelorarbeit","Bachelorarbeit",null,{"$f":"AND(H3,H4,NOT(OR(H5,H6,H7)))","v":false},"Prog+MDI","Prog+MDI+DuA",null,{"$f":"AND(L4,NOT(OR(L3,L5:L9)))","v":false},"ES","POOL oder +3CP"]
[false,"E3: Studium Liberale",null,null,null,null,null,{"$f":"AND(H3,H6,NOT(OR(H4,H5,H7)))","v":false},"Prog+DMBS","Prog+DMBS+DuA",null,{"$f":"AND(L5,NOT(OR(L3:L4,L6:L9)))","v":false},"ITPM","POOL oder E1"]
[false,"WP I",null,null,null,null,null,{"$f":"AND(H3,H7,NOT(OR(H4,H5,H6)))","v":false},"Prog+RSBS","Prog+RSBS+DuA",null,{"$f":"AND(L6,NOT(OR(L3:L5,L7:L9)))","v":false},"E1","POOL oder E1"]
[false,"WP II",null,null,null,null,null,{"$f":"AND(H4,H6,NOT(OR(H3,H5,H7)))","v":false},"MDI+DBMS","MDI+DBMS+DuA",null,{"$f":"AND(L7,NOT(OR(L3:L6,L8:L9)))","v":false},"WPInf","WP1"]
[false,"WP III",null,null,null,null,null,{"$f":"AND(H4,H7,NOT(OR(H3,H4,H6)))","v":false},"MDI+RSBS","MDI+RSBS+DuA",null,{"$f":"AND(L8,NOT(OR(L3:L7,L9)))","v":false},"WPWB","WP0"]
[false,"WP IV",null,null,null,null,null,{"$f":"AND(H6,H7,NOT(OR(H3,H4,H5)))","v":false},"DBMS+RSBS","DBMS+RSBS+DuA",null,{"$f":"AND(L9,NOT(OR(L3:L8)))","v":false},"BP","BP+POOL oder E1"]
[false,"Wahlpflichtmodul aus Informatik oder",null,null,null,null,null,{"$f":"AND(H3,H4,H6,H7,NOT(OR(H5)))","v":false},"Prog+MDI+DBMS+RSBS","Prog+MDI+DBMS+RSBS+DuA+AM"]
[false,"Wahlpflichtmodul aus WiInf oder BWL",null,null,null,null,null,null,null,null,null,null,"3.2 \"zwei\" Module bestanden"]
[false,"E3: Studium Liberale",null,null,null,null,null,"2.2 \"3 Cp benötigt\"",null,null,null,"Formel","Module PO 2017","Module PO 2023"]
[false,"Seminar",null,null,null,null,null,"Formel","Module PO 2017","Module PO 2023",null,{"$f":"AND(L3,L4,NOT(OR(L5:L9)))","v":false},"BWL+ES","WP0+(POOL oder +3CP)"]
[false,"Bachelorprojekt",null,null,null,null,null,{"$f":"AND(H3,H4,H5,NOT(OR(H6,H7)))","v":false},"Prog+SEP+MDI","Prog+SEP+MDI+?DuA?",null,{"$f":"AND(L3,L5,NOT(OR(L4,L6:L9)))","v":false},"BWL+ITPM","WP0+(POOL oder E1)"]
[false,"Bachelorarbeit",null,null,null,null,null,{"$f":"AND(H3,H5,H6,NOT(OR(H4,H7)))","v":false},"Prog+SEP+DBMS","Prog+SEP+DBMS+?DuA?",null,{"$f":"AND(L3,L6,NOT(OR(L4:L5,L7:L9)))","v":false},"BWL+E1","WP0+(POOL oder E1)"]
[null,null,null,null,null,null,null,{"$f":"AND(H3,H5,H7,NOT(OR(H4,H6)))","v":false},"Prog+SEP+RSBS","Prog+SEP+RSBS+?DuA?",null,{"$f":"AND(L3,L7,NOT(OR(L4:L6,L8:L9)))","v":false},"BWL+WPInf","WP0+WP1"]
[null,null,null,null,null,null,null,{"$f":"AND(H3,H4,H5,H6,H7)","v":false},"Prog+SEP+MDI+DBMS+RSBS","Prog+SEP+MDI+DBMS+RSBS+DuA+?AM?",null,{"$f":"AND(L3,L8,NOT(OR(L4:L7,L9)))","v":false},"BWL+WPWB","WP0+WP1"]
[null,null,null,null,null,null,null,{"$f":"AND(H3,NOT(OR(H4,H5,H6,H7)))","v":false},"Prog","Prog+?DuA?",null,{"$f":"AND(L3,L9,NOT(OR(L4:L8)))","v":false},"BWL+BP","WP0+BP+(POOL oder E1)"]
[null,null,null,null,null,null,null,{"$f":"AND(H4,NOT(OR(H3,H5,H6,H7)))","v":false},"MDI","MDI+?DuA?",null,{"$f":"AND(L4,L5,NOT(OR(L3,L6:L9)))","v":false},"ES+ITPM","WP0"]
[null,null,null,null,null,null,null,{"$f":"AND(H6,NOT(OR(H3,H4,H5,H7)))","v":false},"DBMS","DBMS+?DuA?",null,{"$f":"AND(L4,L6,NOT(OR(L3,L5,L7:L9)))","v":false},"ES+E1","(POOL+E1) oder WP0"]
[null,null,null,null,null,null,null,{"$f":"AND(H7,NOT(OR(H3,H4,H5,H6)))","v":false},"RSBS","RSBS+?DuA?",null,{"$f":"AND(L4,L7,NOT(OR(L3,L5:L6,L8:L9)))","v":false},"ES+WPInf","(POOL oder +3CP)+WP1"]
[null,null,null,null,null,null,null,{"$f":"AND(H3,H4,H6,NOT(OR(H5,H7)))","v":false},"Prog+MDI+DBMS","Prog+MDI+DBMS+DuA+?AM?",null,{"$f":"AND(L4,L8,NOT(OR(L3,L5:L7,L9)))","v":false},"ES+WPWB","(POOL oder +3CP)+WP0"]
[null,null,null,null,null,null,null,{"$f":"AND(H3,H4,H7,NOT(OR(H5,H6)))","v":false},"Prog+MDI+RSBS","Prog+MDI+RSBS+DuA+?AM?",null,{"$f":"AND(L4,L9,NOT(OR(L3,L5:L8)))","v":false},"ES+BP","(POOL+E1 oder WP)+BP"]
[null,null,null,null,null,null,null,{"$f":"AND(H3,H6,H7,NOT(OR(H4,H5)))","v":false},"Prog+DBMS+RSBS","Prog+DBMS+RSBS+DuA+?AM?",null,{"$f":"AND(L5,L6,NOT(OR(L3:L4,L7:L9)))","v":false},"ITPM+E1","WP0"]
[null,null,null,null,null,null,null,{"$f":"AND(H4,H6,H7,NOT(OR(H3,H5)))","v":false},"MDI+DBMS+RSBS","MDI+DBMS+RSBS+DuA+?AM?",null,{"$f":"AND(L5,L7,NOT(OR(L3:L4,L6,L8:L9)))","v":false},"ITPM+WPInf","(POOL oder E1)+WP1"]
[null,null,null,null,null,null,null,null,null,null,null,{"$f":"AND(L5,L8,NOT(OR(L3:L4,L6:L7,L9)))","v":false},"ITPM+WPWB","(POOL oder E1)+WP0"]
[null,null,null,null,null,null,null,"2.3 Ergebnis",null,null,null,{"$f":"AND(L5,L9,NOT(OR(L3:L4,L6:L8)))","v":false},"ITPM+BP","(POOL+E1 oder WP0)+BP"]
[null,null,null,null,null,null,null,"angerechnet","Modul PO 2023",null,null,{"$f":"AND(L6,L7,NOT(OR(L3:L5,L8:L9)))","v":false},"E1+WPInf","(POOL oder E1)+WP1"]
[null,null,null,null,null,null,null,{"$f":"OR(H15:H21,H25,H29:H33,H37:H39)","v":false},"Einführung in die Programmierung",null,null,{"$f":"AND(L6,L8,NOT(OR(L3:L5,L7,L9)))","v":false},"E1+WPWB","(POOL oder E1)+WP0"]
[null,null,null,null,null,null,null,{"$f":"OR(H16,H17,H19,H22,H23,H25,H29,H32,H34,H37,H38,H40)","v":false},"Modelle der Informatik",null,null,{"$f":"AND(L6,L9,NOT(OR(L3:L5,L7:L8)))","v":false},"E1+BP","(POOL+E1 oder WP1)+BP"]
[null,null,null,null,null,null,null,{"$f":"OR(H15:H18,H29:H32)","v":false},"Software Entwicklung und  Programmierung (SEP)",null,null,{"$f":"AND(L7,L9,NOT(OR(L3:L6,L8)))","v":false},"WPInf+BP","WP1+BP+(POOL oder E1)"]
[null,null,null,null,null,null,null,{"$f":"OR(H16,H18,H20,H22,H24,H25,H30,H32,H35,H37,H39,H40)","v":false},"Datenbankmanagementsysteme",null,null,{"$f":"AND(L8,L9,NOT(OR(L3:L7)))","v":false},"WPWB+BP","WP0+BP+(POOL oder E1)"]
[null,null,null,null,null,null,null,{"$f":"OR(H17,H18,H21,H23,H24,H25,H31,H32,H36,H38,H39,H40)","v":false},"Rechnerstrukturen und Betriebssysteme"]
[null,null,null,null,null,null,null,{"$f":"OR(H16:H25,H32,H37:H40,AND(OR(H29:H31,H33:H36),H54))","v":false},"Datenstrukturen und Algorithmen",null,null,null,"3.3 \"drei\" Module bestanden"]
[null,null,null,null,null,null,null,{"$f":"OR(H25,AND(OR(H32,H37:H40),H54))","v":false},"Application Management",null,null,"Formel","Module PO 2017","Module PO 2023"]
[null,null,null,null,null,null,null,{"$f":"AND(OR(H29:H31,H33:H36))","v":false},"?DuA?",null,null,{"$f":"AND(L3,L4,L5,NOT(OR(L6:L9)))","v":false},"BWL+ES+ITPM","WP0+(POOL+E1 oder WPI)"]
[null,null,null,null,null,null,null,{"$f":"AND(OR(H32,H37:H40))","v":false},"?AM?",null,null,{"$f":"AND(L3,L4,L6,NOT(OR(L5,L7:L9)))","v":false},"BWL+ES+E1","WP0+(POOL+E1 oder WPI)"]
[null,null,null,null,null,null,null,{"$f":"OR(H51:H52)","v":false},"3 CP benötigt",null,null,{"$f":"AND(L3,L4,L7,NOT(OR(L5:L6,L8:L9)))","v":false},"BWL+ES+WBInf","WP0+(POOL oder +3CP)+WP1"]
[null,null,null,null,null,null,null,{"$f":"L144","v":false},"3 CP im POOL vorhanden",null,null,{"$f":"AND(L3,L4,L8,NOT(OR(L5:L7,L9)))","v":false},"BWL+ES+WBWP","WP0+(POOL oder +3CP)+WP1"]
[null,null,null,null,null,null,null,{"$f":"AND(H51,NOT(H54))","v":false},"+3 CP ","mit 3 CP Schlüsselqualifikation anzurechnen auf  Datenstrukturen und Algorithmen",null,{"$f":"AND(L3,L4,L9,NOT(OR(L5:L8)))","v":false},"BWL+ES+BP","WP0+(POOL+E1 oder WPI)+BP"]
[null,null,null,null,null,null,null,{"$f":"AND(H52,NOT(H54))","v":false},"+3 CP","mit 3 CP Schlüsselqualifikation anzurechnen auf  Application Management",null,{"$f":"AND(L3,L5,L6,NOT(OR(L4,L7:L9)))","v":false},"BWL+ITPM+E1","WP0+(POOL+E1 oder WPI)"]
[null,null,null,null,null,null,null,null,null,null,null,{"$f":"AND(L3,L5,L7,NOT(OR(L4,L6,L8:L9)))","v":false},"BWL+ITPM+WBInf","WP0+(POOL oder E1)+WP1"]
[null,null,null,null,null,null,null,null,null,null,null,{"$f":"AND(L3,L5,L8,NOT(OR(L4,L6:L7,L9)))","v":false},"BWL+ITPM+WBWP","WP0+(POOL oder E1)+WP1"]
[null,null,null,null,null,null,null,null,null,null,null,{"$f":"AND(L3,L5,L9,NOT(OR(L4,L6:L8)))","v":false},"BWL+ITPM+BP","WP0+(POOL+E1 oder WPI)+BP"]
[null,null,null,null,null,null,null,null,null,null,null,{"$f":"AND(L3,L6,L7,NOT(OR(L4:L5,L8:L9)))","v":false},"BWL+E1+WBInf","WP0+(POOL oder E1)+WP1"]
[null,null,null,null,null,null,null,null,null,null,null,{"$f":"AND(L3,L6,L8,NOT(OR(L4:L5,L7,L9)))","v":false},"BWL+E1+WBWP","WP0+(POOL oder E1)+WP1"]
[null,null,null,null,null,null,null,null,null,null,null,{"$f":"AND(L3,L6,L9,NOT(OR(L4:L5,L7:L8)))","v":false},"BWL+E1+BP","WP0+(POOL+E1 oder WPI)+BP"]
[null,null,null,null,null,null,null,null,null,null,null,{"$f":"AND(L3,L7,L9,NOT(OR(L4:L6,L8)))","v":false},"BWL+WBInf+BP","WP0+WP1+BP+(POOL oder E1)"]
[null,null,null,null,null,null,null,null,null,null,null,{"$f":"AND(L3,L8,L9,NOT(OR(L4:L7)))","v":false},"BWL+WBWP+BP","WP0+WP1+BP+(POOL oder E1)"]
[null,null,null,null,null,null,null,null,null,null,null,{"$f":"AND(L4,L5,L6,NOT(OR(L3,L7:L9)))","v":false},"ES+ITPM+E1","WP0+(POOL oder E1)"]
[null,null,null,null,null,null,null,null,null,null,null,{"$f":"AND(L4,L5,L7,NOT(OR(L3,L6,L8:L9)))","v":false},"ES+ITPM+WBInf","WP0+WP1"]
[null,null,null,null,null,null,null,null,null,null,null,{"$f":"AND(L4,L5,L8,NOT(OR(L3,L6:L7,L9)))","v":false},"ES+ITPM+WBWP","WP0+WP1"]
[null,null,null,null,null,null,null,null,null,null,null,{"$f":"AND(L4,L5,L9,NOT(OR(L3,L6:L8)))","v":false},"ES+ITPM+BP","WP0+BP+(POOL oder E1)"]
[null,null,null,null,null,null,null,null,null,null,null,{"$f":"AND(L4,L6,L7,NOT(OR(L3,L5,L8:L9)))","v":false},"ES+E1+WBInf","(POOL+E1 oder WP)+WP1"]
[null,null,null,null,null,null,null,null,null,null,null,{"$f":"AND(L4,L6,L8,NOT(OR(L3,L5,L7,L9)))","v":false},"ES+E1+WBWP","(POOL+E1 oder WPI)+WP0"]
[null,null,null,null,null,null,null,null,null,null,null,{"$f":"AND(L4,L6,L9,NOT(OR(L3,L5,L7:L8)))","v":false},"ES+E1+BP","WP0+BP+(POOL oder E1)"]
[null,null,null,null,null,null,null,null,null,null,null,{"$f":"AND(L4,L7,L9,NOT(OR(L3,L5:L6,L8)))","v":false},"ES+WBInf+BP","(POOL+E1 oder WP)+WP1+BP"]
[null,null,null,null,null,null,null,null,null,null,null,{"$f":"AND(L4,L8,L9,NOT(OR(L3,L5:L7)))","v":false},"ES+WBWP+BP","(POOL+E1 oder WPI)+WP0+BP"]
[null,null,null,null,null,null,null,null,null,null,null,{"$f":"AND(L5,L6,L7,NOT(OR(L3:L4,L8:L9)))","v":false},"ITPM+E1+WBInf","WP0+WP1"]
[null,null,null,null,null,null,null,null,null,null,null,{"$f":"AND(L5,L6,L8,NOT(OR(L3:L4,L7,L9)))","v":false},"ITPM+E1+WBWP","WP1+WP0"]
[null,null,null,null,null,null,null,null,null,null,null,{"$f":"AND(L5,L6,L9,NOT(OR(L3:L4,L7:L8)))","v":false},"ITPM+E1+BP","WP0+BP+(POOL oder E1)"]
[null,null,null,null,null,null,null,null,null,null,null,{"$f":"AND(L5,L7,L9,NOT(OR(L3:L4,L6,L8)))","v":false},"ITPM+WBInf+BP","(POOL+E1 oder WP)+WP1+BP"]
[null,null,null,null,null,null,null,null,null,null,null,{"$f":"AND(L5,L8,L9,NOT(OR(L3:L4,L6:L7)))","v":false},"ITPM+WBWP+BP","(POOL+E1 oder WPI)+WP0+BP"]
[null,null,null,null,null,null,null,null,null,null,null,{"$f":"AND(L6,L7,L9,NOT(OR(L3:L5,L8)))","v":false},"E1+WBInf+BP","(POOL+E1 oder WPII)+WP1+BP"]
[null,null,null,null,null,null,null,null,null,null,null,{"$f":"AND(L6,L8,L9,NOT(OR(L3:L5,L7)))","v":false},"E1+WBWP+BP","(POOL+E1 oder WPI)+WP0+BP"]
[]
[null,null,null,null,null,null,null,null,null,null,null,null,"3.4 \"vier\" Module bestanden"]
[null,null,null,null,null,null,null,null,null,null,null,"Formel","Module PO 2017","Module PO 2023"]
[null,null,null,null,null,null,null,null,null,null,null,{"$f":"AND(L3:L6,NOT(OR(L7:L9)))","v":false},"BWL+ES+ITPM+E1","WP0+WP1+(POOL oder E1)"]
[null,null,null,null,null,null,null,null,null,null,null,{"$f":"AND(L3:L5,L7,NOT(OR(L6,L8:L9)))","v":false},"BWL+ES+ITPM+WPInf","WP0+(POOL+E1 oder WPII)+WP1"]
[null,null,null,null,null,null,null,null,null,null,null,{"$f":"AND(L3:L5,L8,NOT(OR(L6:L7,L9)))","v":false},"BWL+ES+ITPM+WPWB","WP0+(POOL+E1 oder WPII)+WP1"]
[null,null,null,null,null,null,null,null,null,null,null,{"$f":"AND(L3:L5,L9,NOT(OR(L6:L8)))","v":false},"BWL+ES+ITPM+BP","WP0+WP1+(POOL oder E1)+BP"]
[null,null,null,null,null,null,null,null,null,null,null,{"$f":"AND(L3,L4,L6,L7,NOT(OR(L5,L8:L9)))","v":false},"BWL+ES+E1+WPInf","WP0+(POOL+E1 oder WPII)+WP1"]
[null,null,null,null,null,null,null,null,null,null,null,{"$f":"AND(L3,L4,L6,L8,NOT(OR(L5,L7,L9)))","v":false},"BWL+ES+E1+WPWB","WP0+(POOL+E1 oder WPII)+WP1"]
[null,null,null,null,null,null,null,null,null,null,null,{"$f":"AND(L3,L4,L6,L9,NOT(OR(L5,L7:L8)))","v":false},"BWL+ES+E1+BP","WP0+WP1+BP+(POOL oder E1)"]
[null,null,null,null,null,null,null,null,null,null,null,{"$f":"AND(L3,L4,L7,L9,NOT(OR(L5:L6,L8)))","v":false},"BWL+ES+WPInf+BP","WP0+WP1+BP+(POOL+E1 oder WPII)"]
[null,null,null,null,null,null,null,null,null,null,null,{"$f":"AND(L3,L4,L8,L9,NOT(OR(L5:L7)))","v":false},"BWL+ES+WPWB+BP","WP0+WP1+BP+(POOL+E1 oder WPII)"]
[null,null,null,null,null,null,null,null,null,null,null,{"$f":"AND(L3,L5:L7,NOT(OR(L4,L8:L9)))","v":false},"BWL+ITPM+E1+WPInf","WP0+(POOL+E1 oder WPII)+WP1"]
[null,null,null,null,null,null,null,null,null,null,null,{"$f":"AND(L3,L5:L6,L8,NOT(OR(L4,L7,L9)))","v":false},"BWL+ITPM+E1+WPWB","WP0+(POOL+E1 oder WPII)+WP1"]
[null,null,null,null,null,null,null,null,null,null,null,{"$f":"AND(L3,L5:L6,L9,NOT(OR(L4,L7:L8)))","v":false},"BWL+ITPM+E1+BP","WP0+(POOL oder E1)+WP1+BP"]
[null,null,null,null,null,null,null,null,null,null,null,{"$f":"AND(L3,L5,L7,L9,NOT(OR(L4,L6,L8)))","v":false},"BWL+ITPM+WPInf+BP","WP0+WP1+BP+(POOL+E1 oder WPII)"]
[null,null,null,null,null,null,null,null,null,null,null,{"$f":"AND(L3,L5,L8,L9,NOT(OR(L4,L6:L7)))","v":false},"BWL+ITPM+WPWB+BP","WP0+WP1+BP+(POOL+E1 oder WPII)"]
[null,null,null,null,null,null,null,null,null,null,null,{"$f":"AND(L3,L6:L7,L9,NOT(OR(L4:L5,L8)))","v":false},"BWL+E1+WPInf+BP","WP0+(POOL+E1 oder WPII)+WP1+BP"]
[null,null,null,null,null,null,null,null,null,null,null,{"$f":"AND(L3,L6,L8,L9,NOT(OR(L4:L5,L7)))","v":false},"BWL+E1+WPWB+BP","WP0+(POOL+E1 oder WPII)+WP1+BP"]
[null,null,null,null,null,null,null,null,null,null,null,{"$f":"AND(L4:L7,NOT(OR(L3,L8:L9)))","v":false},"ES+ITPM+E1+WPInf","WP0+(POOL oder E1)+WP1"]
[null,null,null,null,null,null,null,null,null,null,null,{"$f":"AND(L4:L6,L8,NOT(OR(L3,L7,L9)))","v":false},"ES+ITPM+E1+WPWB","WP0+(POOL oder E1)+WP2"]
[null,null,null,null,null,null,null,null,null,null,null,{"$f":"AND(L4:L6,L9,NOT(OR(L3,L7:L8)))","v":false},"ES+ITPM+E1+BP","WP0+(POOL+E1 oder WPI)+BP"]
[null,null,null,null,null,null,null,null,null,null,null,{"$f":"AND(L4,L6:L7,L9,NOT(OR(L3,L5,L8)))","v":false},"ES+E1+WBInf+BP","WP0+WP1+(POOL oder E1)"]
[null,null,null,null,null,null,null,null,null,null,null,{"$f":"AND(L4,L6,L8,L9,NOT(OR(L3,L5,L7)))","v":false},"ES+E1+WPWB+BP","WP1+WP0+(POOL oder E1)"]
[null,null,null,null,null,null,null,null,null,null,null,{"$f":"AND(L4,L5,L7,L9,NOT(OR(L3,L6,L8)))","v":false},"ES+ITPM+WPInf+BP","WP0+WP1+BP+(POOL oder E1)"]
[null,null,null,null,null,null,null,null,null,null,null,{"$f":"AND(L4,L5,L8,L9,NOT(OR(L3,L6,L7)))","v":false},"ES+ITPM+WPWB+BP","WP0+WP1+BP+(POOL oder E1)"]
[null,null,null,null,null,null,null,null,null,null,null,{"$f":"AND(L5:L7,L9,NOT(OR(L3:L4,L8)))","v":false},"ITPM+E1+WPInf+BP","WP0+WP1+BP+(POOL oder E1)"]
[null,null,null,null,null,null,null,null,null,null,null,{"$f":"AND(L5:L6,L8,L9,NOT(OR(L3:L4,L7)))","v":false},"ITPM+E1+WPWB+BP","WP1+WP0+BP+(POOL oder E1)"]
[]
[null,null,null,null,null,null,null,null,null,null,null,null,"3.5 \"fünf\" Module bestanden"]
[null,null,null,null,null,null,null,null,null,null,null,"Formel","Module PO 2017","Module PO 2023"]
[null,null,null,null,null,null,null,null,null,null,null,{"$f":"AND(L3:L7,NOT(OR(L8,L9)))","v":false},"BWL+ES+ITPM+E1+WPInf","WP0+WP2+(POOL oder E1)+WP1"]
[null,null,null,null,null,null,null,null,null,null,null,{"$f":"AND(L3:L6,L8,NOT(OR(L7,L9)))","v":false},"BWL+ES+ITPM+E1+WPWB","WP0+WP2+(POOL oder E1)+WP1"]
[null,null,null,null,null,null,null,null,null,null,null,{"$f":"AND(L3:L6,L9,NOT(OR(L7,L8)))","v":false},"BWL+ES+ITPM+E1+BP","WP0+WP1+(POOL+E1 oder WPII)+BP"]
[null,null,null,null,null,null,null,null,null,null,null,{"$f":"AND(L3:L5,L7,L9,NOT(OR(L6,L8)))","v":false},"BWL+ES+ITPM+WPInf+BP","WP0+WP2+WP1+BP+(POOL oder E1)"]
[null,null,null,null,null,null,null,null,null,null,null,{"$f":"AND(L3:L5,L8,L9,NOT(OR(L6,L7)))","v":false},"BWL+ES+ITPM+WPWB+BP","WP0+WP2+WP1+BP+(POOL oder E1)"]
[null,null,null,null,null,null,null,null,null,null,null,{"$f":"AND(L3:L4,L6,L7,L9,NOT(OR(L5,L8)))","v":false},"BWL+ES+E1+WPInf+BP","WP0+WP2+WP1+BP+(POOL oder E1)"]
[null,null,null,null,null,null,null,null,null,null,null,{"$f":"AND(L3:L4,L6,L8,L9,NOT(OR(L5,L7)))","v":false},"BWL+ES+E1+WPWB+BP","WP0+WP2+WP1+BP+(POOL oder E1)"]
[null,null,null,null,null,null,null,null,null,null,null,{"$f":"AND(L3,L5,L6,L7,L9,NOT(OR(L4,L8)))","v":false},"BWL+ITPM+E1+WPInf+BP","WP0+WP2+WP1+BP+(POOL oder E1)"]
[null,null,null,null,null,null,null,null,null,null,null,{"$f":"AND(L3,L5,L6,L8,L9,NOT(OR(L4,L7)))","v":false},"BWL+ITPM+E1+WPWB+BP","WP0+WP2+WP1+BP+(POOL oder E1)"]
[null,null,null,null,null,null,null,null,null,null,null,{"$f":"AND(L4:L7,L9,NOT(OR(L3,L8)))","v":false},"ES+ITPM+E1+WPInf+BP","WP0+WP1+BP+(POOL+E1 oder WPII)"]
[null,null,null,null,null,null,null,null,null,null,null,{"$f":"AND(L4:L6,L8:L9,NOT(OR(L3,L7)))","v":false},"ES+ITPM+E1+WPWB+BP","WP0+WP1+BP+(POOL+E1 oder WPII)"]
[]
[null,null,null,null,null,null,null,null,null,null,null,null,"3.6 \"sechs\" Module bestanden"]
[null,null,null,null,null,null,null,null,null,null,null,"Formel","Module PO 2017","Module PO 2023"]
[null,null,null,null,null,null,null,null,null,null,null,{"$f":"AND(L3:L7,L9,NOT(L8))","v":false},"BWL+ES+ITPM+E1+WPInf+BP","WP0+WP2+WP1+BP+(POOL+E1 oder +6CP)"]
[null,null,null,null,null,null,null,null,null,null,null,{"$f":"AND(L3:L6,L8:L9,NOT(L7))","v":false},"BWL+ES+ITPM+E1+WPWB+BP","WP0+WP2+WP1+BP+(POOL+E1 oder +6CP)"]
[]
[null,null,null,null,null,null,null,null,null,null,null,null,"3.7 \"Sonderfälle\""]
[null,null,null,null,null,null,null,null,null,null,null,"angerechnet","Modul PO 2023"]
[null,null,null,null,null,null,null,null,null,null,null,{"$f":"IF(ISNUMBER(FIND(\"POOL oder E1\",VLOOKUP(TRUE,L18:N127,3,FALSE))),TRUE,FALSE)","v":false},"POOL oder E1"]
[null,null,null,null,null,null,null,null,null,null,null,{"$f":"IF(ISNUMBER(FIND(\"POOL oder +3CP\",VLOOKUP(TRUE,L18:N127,3,FALSE))),TRUE,FALSE)","v":false},"POOL oder +3CP"]
[null,null,null,null,null,null,null,null,null,null,null,{"$f":"IF(ISNUMBER(FIND(\"POOL+E1 oder WP\",VLOOKUP(TRUE,L18:N127,3,FALSE))),TRUE,FALSE)","v":false},"POOL+E1 oder WP"]
[null,null,null,null,null,null,null,null,null,null,null,{"$f":"IF(ISNUMBER(FIND(\"POOL+E1 oder WPI\",VLOOKUP(TRUE,L18:N127,3,FALSE))),TRUE,FALSE)","v":false},"POOL+E1 oder WPI"]
[null,null,null,null,null,null,null,null,null,null,null,{"$f":"IF(ISNUMBER(FIND(\"POOL+E1 oder WPII\",VLOOKUP(TRUE,L18:N127,3,FALSE))),TRUE,FALSE)","v":false},"POOL+E1 oder WPII"]
[null,null,null,null,null,null,null,null,null,null,null,{"$f":"IF(ISNUMBER(FIND(\"POOL+E1 oder +6CP\",VLOOKUP(TRUE,L18:N127,3,FALSE))),TRUE,FALSE)","v":false},"POOL+E1 oder +6CP"]
[]
[null,null,null,null,null,null,null,null,null,null,null,null,"3.8 Ergebnis"]
[null,null,null,null,null,null,null,null,null,null,null,"angerechnet","Modul PO 2023","Abkürzung"]
[null,null,null,null,null,null,null,null,null,null,null,{"$f":"OR(IF(ISNUMBER(FIND(\"WP0\",VLOOKUP(TRUE,L18:N127,3,FALSE))),TRUE,FALSE),AND(NOT(H53),L133))","v":false},"Wahlplichtmodul (WiWi und WiInf)","WP0 oder WP"]
[null,null,null,null,null,null,null,null,null,null,null,{"$f":"OR(IF(ISNUMBER(FIND(\"WP1\",VLOOKUP(TRUE,L18:N127,3,FALSE))),TRUE,FALSE),AND(NOT(H53),L134))","v":false},"Wahlpflichtmodul I: Informatik","WPI oder WP1"]
[null,null,null,null,null,null,null,null,null,null,null,{"$f":"OR(IF(ISNUMBER(FIND(\"WP2\",VLOOKUP(TRUE,L18:N127,3,FALSE))),TRUE,FALSE),AND(NOT(H53),L135))","v":false},"Wahlpflichtmodul II: Informatik","WPII oder WP2"]
[null,null,null,null,null,null,null,null,null,null,null,{"$f":"IF(ISNUMBER(FIND(\"BP\",VLOOKUP(TRUE,L18:N127,3,FALSE))),TRUE,FALSE)","v":false},"Bachelorprojekt","BP"]
[null,null,null,null,null,null,null,null,null,null,null,{"$f":"AND(H53,OR(L131,L132:L136))","v":false},"POOL","POOL"]
[null,null,null,null,null,null,null,null,null,null,null,{"$f":"OR(AND(NOT(H53),L131),AND(H53,OR(L133:L136)))","v":false},"E1: Schlüsselqualifikationen","E1"]
[null,null,null,null,null,null,null,null,null,null,null,{"$f":"OR(AND(NOT(H53),L132))","v":false},"mit 3 CP Schlüsselqualifikation anzurechnen auf  WP-Bereich","+3CP"]
[null,null,null,null,null,null,null,null,null,null,null,{"$f":"OR(AND(NOT(H53),L136))","v":false},"anzurechnen auf ein neues Modul","+6CP"]